fUST/lending_fUST_20240224
["ID","MTS","AMOUNT","RATE_DAILY","PERIOD"]
[315052726,1708787440360,-500.0,0.00019452,2]
[315052727,1708787440369,-500.0,0.00019452,2]
[315052728,1708787440378,-500.0,0.00019452,2]
[315052729,1708787440387,-500.0,0.00019452,2]
[315052730,1708787440395,-500.0,0.00019452,2]
[315052731,1708787440405,-258.37608365,0.00019452,2]
[315052732,1708787440414,-500.0,0.00019452,2]
[315052733,1708787440423,-254.21358286,0.00019452,2]
[315052734,1708787440432,-500.0,0.00019452,2]
[315052735,1708787440441,-559.01,0.00019452,2]
[315052736,1708787440450,-500.0,0.00019452,2]
[315052738,1708787440459,-500.0,0.00019452,2]
[315052739,1708787440468,-549.33868893,0.00019452,2]
[315052740,1708787440477,-500.0,0.00019452,2]
[315052741,1708787440486,-416.45003183,0.00019452,2]
[315052742,1708787440495,-500.0,0.00019452,2]
[315052743,1708787440504,-1557.09,0.00019452,2]
[315052744,1708787440513,-780.5,0.00019452,2]
[315052745,1708787440523,-500.0,0.00019452,2]
[315052746,1708787440532,-1692.69,0.00019452,2]
[315052747,1708787440541,-172.04761987,0.00019452,2]
[315052749,1708787440550,-500.0,0.00019452,2]
[315052751,1708787440558,-5118.86,0.00019452,2]
[315052752,1708787440567,-983.3,0.00019452,2]
[315052754,1708787440576,-300.0,0.00019452,2]
[315052756,1708787440585,-1369.58,0.00019452,2]
[315052758,1708787440594,-500.0,0.00019452,2]
[315052760,1708787440606,-500.0,0.00019452,2]
[315052761,1708787440615,-500.0,0.00019452,2]
[315052763,1708787440624,-1020.03,0.00019452,2]
[315052765,1708787440633,-500.0,0.00019452,2]
[315052767,1708787440641,-501.87141753,0.00019452,2]
[315052769,1708787440651,-888.05,0.00019452,2]
[315052771,1708787440660,-500.0,0.00019452,2]
[315052773,1708787440669,-1112.4,0.00019452,2]
[315052775,1708787440679,-500.0,0.00019452,2]
[315052776,1708787440689,-500.0,0.00019452,2]
[315052778,1708787440698,-1466.55,0.00019452,2]
[315052779,1708787440706,-500.0,0.00019452,2]
[315052781,1708787440715,-500.0,0.00019452,2]
[315052783,1708787440724,-500.0,0.00019452,2]
[315052785,1708787440733,-8209.41,0.00019452,2]
[315052786,1708787440742,-500.0,0.00019452,2]
[315052788,1708787440751,-1709.94,0.00019452,2]
[315052789,1708787440760,-8830.36,0.00019452,2]
[315052791,1708787440769,-637.37,0.00019452,2]
[315052793,1708787440778,-500.0,0.00019452,2]
[315052795,1708787440787,-500.0,0.00019452,2]
[315052796,1708787440797,-500.0,0.00019452,2]
[315052797,1708787440806,-500.0,0.00019452,2]
[315052798,1708787440815,-500.0,0.00019452,2]
[315052799,1708787440824,-500.0,0.00019452,2]
[315052800,1708787440832,-1076.48,0.00019452,2]
[315052801,1708787440841,-500.0,0.00019452,2]
[315052802,1708787440850,-501.19258491,0.00019452,2]
[315052803,1708787440859,-500.0,0.00019452,2]
[315052804,1708787440869,-607.72,0.00019452,2]
[315052805,1708787440879,-500.0,0.00019452,2]
[315052806,1708787440888,-500.0,0.00019452,2]
[315052807,1708787440898,-592.01,0.00019452,2]
[315052808,1708787440907,-500.0,0.00019452,2]
[315052809,1708787440916,-500.0,0.00019452,2]
[315052810,1708787440926,-500.0,0.00019452,2]
[315052811,1708787440935,-500.0,0.00019452,2]
[315052812,1708787440944,-151.25262955,0.00019452,2]
[315052813,1708787440953,-502.18556509,0.00019452,2]
[315052814,1708787440963,-797.19,0.00019452,2]
[315052815,1708787440972,-500.0,0.00019452,2]
[315052816,1708787440981,-500.0,0.00019452,2]
[315052818,1708787440991,-500.0,0.00019452,2]
[315052820,1708787441000,-5236.28,0.00019452,2]
[315052822,1708787441009,-787.66,0.00019452,2]
[315052824,1708787441018,-500.0,0.00019452,2]
[315052826,1708787441028,-925.75,0.00019452,2]
[315052828,1708787441037,-500.0,0.00019452,2]
[315052830,1708787441046,-501.09651573,0.00019452,2]
[315052832,1708787441054,-2193.95,0.00019452,2]
[315052834,1708787441063,-3641.62,0.00019452,2]
[315052836,1708787441072,-185.54660767,0.00019464,2]
[315052838,1708787441082,-185.54660767,0.00019488,2]
[315052840,1708787441091,-208.28568397,0.00019489,2]
[315052842,1708787441100,-185.54660767,0.00019494,2]
[315052844,1708787441109,-500.0,0.00019495,2]
[315052846,1708787441118,-500.0,0.00019495,2]
[315052848,1708787441127,-1091.33,0.00019495,2]
[315052850,1708787441137,-10451.50614662,0.00019496,2]
[315052852,1708787441146,-200.5294442,0.000195,2]
[315052854,1708787441156,-166.666666,0.00019627,2]
[315052856,1708787441165,-208.28568397,0.00019695,2]
[315052858,1708787441177,-1065.6,0.00019725,2]
[315052860,1708787441186,-1065.6,0.00019725,2]
[315052862,1708787441198,-500.0,0.00019726,2]
[315052864,1708787441208,-500.0,0.00019726,2]
[315052866,1708787441217,-500.0,0.00019726,2]
[315052868,1708787441226,-624.42,0.00019726,2]
[315052870,1708787441237,-500.0,0.00019726,2]
[315052872,1708787441246,-500.0,0.00019726,2]
[315052874,1708787441254,-500.0,0.00019726,2]
[315052876,1708787441263,-500.0,0.00019726,2]
[315052878,1708787441273,-500.0,0.00019726,2]
[315052880,1708787441283,-500.0,0.00019726,2]
[315052882,1708787441293,-500.0,0.00019726,2]
[315052884,1708787441303,-500.0,0.00019726,2]
[315052886,1708787441313,-1325.79,0.00019726,2]
[315052888,1708787441322,-500.0,0.00019726,2]
[315052890,1708787441332,-500.0,0.00019726,2]
[315052892,1708787441341,-500.0,0.00019726,2]
[315052894,1708787441350,-500.71233704,0.00019726,2]
[315052896,1708787441359,-500.0,0.00019726,2]
[315052905,1708787441469,-500.0,0.00019726,2]
[315052906,1708787441480,-500.0,0.00019726,2]
[315052907,1708787441490,-695.54,0.00019726,2]
[315052908,1708787441499,-500.0,0.00019726,2]
[315052909,1708787441508,-661.5,0.00019726,2]
[315052910,1708787441518,-500.0,0.00019726,2]
[315052911,1708787441527,-500.0,0.00019726,2]
[315052912,1708787441537,-500.0,0.00019726,2]
[315052913,1708787441547,-524.59,0.00019726,2]
[315052914,1708787441556,-500.0,0.00019726,2]
[315052915,1708787441566,-500.0,0.00019726,2]
[315052916,1708787441575,-500.0,0.00019726,2]
[315052918,1708787441584,-500.0,0.00019726,2]
[315052919,1708787441594,-500.0,0.00019726,2]
[315052921,1708787441605,-418.83975766,0.00019726,2]
[315052922,1708787441616,-500.0,0.00019726,2]
[315052923,1708787441626,-577.02370841,0.00019726,2]
[315052924,1708787441637,-500.0,0.00019726,2]
[315052925,1708787441647,-500.0,0.00019726,2]
[315052926,1708787441658,-1557.09,0.00019726,2]
[315052927,1708787441668,-780.5,0.00019726,2]
[315052928,1708787441684,-500.0,0.00019726,2]
[315052929,1708787441694,-1692.69,0.00019726,2]
[315052930,1708787441706,-500.0,0.00019726,2]
[315052931,1708787441716,-5118.86,0.00019726,2]
[315052932,1708787441727,-983.3,0.00019726,2]
[315052933,1708787441740,-1369.58,0.00019726,2]
[315052934,1708787441750,-500.0,0.00019726,2]
[315052935,1708787441762,-500.0,0.00019726,2]
[315052936,1708787441772,-1020.03,0.00019726,2]
[315052937,1708787441782,-236.07777895,0.00019726,2]
[315052938,1708787441792,-888.05,0.00019726,2]
[315052939,1708787441802,-500.0,0.00019726,2]
[315052940,1708787441811,-1112.4,0.00019726,2]
[315052941,1708787441822,-1466.55,0.00019726,2]
[315052942,1708787441832,-8209.41,0.00019726,2]
[315052943,1708787441842,-500.0,0.00019726,2]
[315052944,1708787441851,-1709.94,0.00019726,2]
[315052945,1708787441862,-8830.36,0.00019726,2]
[315052946,1708787441871,-637.37,0.00019726,2]
[315052947,1708787441881,-500.0,0.00019726,2]
[315052948,1708787441891,-500.0,0.00019726,2]
[315052949,1708787441901,-500.0,0.00019726,2]
[315052950,1708787441910,-500.0,0.00019726,2]
[315052951,1708787441919,-501.06102034,0.00019726,2]
[315052952,1708787441934,-500.0,0.00019726,2]
[315052953,1708787441943,-1076.48,0.00019726,2]
[315052954,1708787441953,-500.0,0.00019726,2]
[315052955,1708787441962,-500.0,0.00019726,2]
[315052956,1708787441971,-607.72,0.00019726,2]
[315052957,1708787441980,-500.0,0.00019726,2]
[315052958,1708787441990,-592.01,0.00019726,2]
[315052959,1708787441999,-500.0,0.00019726,2]
[315052960,1708787442009,-500.0,0.00019726,2]
[315052961,1708787442018,-797.19,0.00019726,2]
[315052962,1708787442028,-371.3298318,0.00019726,2]
[315052963,1708787442037,-500.0,0.00019726,2]
[315052964,1708787442046,-5236.28,0.00019726,2]
[315052965,1708787442055,-787.66,0.00019726,2]
[315052966,1708787442064,-925.75,0.00019726,2]
[315052967,1708787442074,-500.0,0.00019726,2]
[315052968,1708787442083,-2193.95,0.00019726,2]
[315052969,1708787442092,-3641.62,0.00019726,2]
[315052970,1708787442101,-500.0,0.00019769,2]
[315052971,1708787442110,-500.0,0.00019769,2]
[315052972,1708787442119,-1091.33,0.00019769,2]
[315052973,1708787442128,-30655.13137335,0.000199,2]
[315052974,1708787442137,-34315.6492,0.000199,2]
[315052975,1708787442146,-208.28568397,0.000199,2]
[315052976,1708787442156,-2774.78266391,0.000199,2]
[315052977,1708787442167,-8226.76805191,0.00019948,2]
[315052978,1708787442177,-153.3652553,0.00019973,2]
[315052979,1708787442187,-153.0,0.00019973,2]
[315052980,1708787442201,-153.0,0.00019973,2]
[315052981,1708787442210,-153.0,0.00019973,2]
[315052982,1708787442220,-153.0,0.00019973,2]
[315052983,1708787442229,-153.0,0.00019973,2]
[315052984,1708787442240,-306.0,0.00019973,2]
[315052985,1708787442250,-588.19481873,0.00019979,2]
[315052986,1708787442259,-155.20797869,0.00019988,2]
[315052987,1708787442270,-182.01718802,0.00019988,2]
[315052988,1708787442278,-388.46296932,0.00019988,2]
[315052990,1708787442288,-273.7273831,0.00019989,2]
[315052991,1708787442298,-1065.6,0.00019999,2]
[315052992,1708787442307,-1065.6,0.00019999,2]
[315052994,1708787442315,-1065.6,0.00019999,2]
[315052996,1708787442324,-1065.6,0.00019999,2]
[315052997,1708787442333,-1065.6,0.00019999,2]
[315052999,1708787442343,-1065.6,0.00019999,2]
[315053000,1708787442352,-1065.6,0.00019999,2]
[315053002,1708787442361,-1065.6,0.00019999,2]
[315053004,1708787442371,-1065.6,0.00019999,2]
[315053006,1708787442380,-1065.6,0.00019999,2]
[315053007,1708787442390,-1065.6,0.00019999,2]
[315053008,1708787442400,-1065.6,0.00019999,2]
[315053009,1708787442409,-1065.6,0.00019999,2]
[315053010,1708787442419,-1065.6,0.00019999,2]
[315053012,1708787442431,-1065.6,0.00019999,2]
[315053013,1708787442440,-1065.6,0.00019999,2]
[315053014,1708787442449,-1065.6,0.00019999,2]
[315053015,1708787442459,-1065.71359977,0.00019999,2]
[315053016,1708787442468,-1518.48968101,0.00019999,2]
[315053017,1708787442477,-1231566.17870059,0.0002,2]
[315053027,1708787442603,-500.0,0.00019178,2]
[315053029,1708787442612,-500.0,0.00019452,2]
[315053031,1708787442621,-500.0,0.00019726,2]
[315053033,1708787442630,-16391.19436056,0.0002,2]
[315053036,1708787442646,-1279.8602078,0.0002,2]
[315053038,1708787442657,-398108.1630975,0.0002,2]
[315053047,1708787442775,-146363.01958174,0.0002,2]
[315053084,1708787806450,24900.0,0.00018108,2]
[315053097,1708788403826,228.5499748,0.0001805,2]
[315053130,1708788632002,-281.28625655,0.0001876,2]
[315053131,1708788632013,-273.79961368,0.0001876,2]
[315053132,1708788632022,-704.04980982,0.00018761,2]
[315053134,1708788632032,-926.09596786,0.00018765,2]
[315053135,1708788632041,-1590.93037397,0.00018766,2]
[315053137,1708788632051,-205.33257706,0.00018767,2]
[315053138,1708788632061,-300.0,0.00018863,2]
[315053140,1708788632070,-246.5678913,0.00018864,2]
[315053221,1708788637974,-1344.36248267,0.00018864,2]
[315053222,1708788637983,-1590.93037397,0.00018864,2]
[315053223,1708788637992,-1590.93037397,0.00018864,2]
[315053224,1708788638001,-1590.93037397,0.00018864,2]
[315053225,1708788638011,-1590.93037397,0.00018864,2]
[315053226,1708788638020,-155.0294556,0.00018888,2]
[315053227,1708788638029,-1092.23729116,0.000189,2]
[315053228,1708788638039,-156.6993804,0.00019068,2]
[315053229,1708788638047,-156.214263,0.00019078,2]
[315053230,1708788638056,-156.21426297,0.00019149,2]
[315053231,1708788638065,-8226.76805191,0.00019157,2]
[315053232,1708788638074,-166.86,0.00019168,3]
[315053233,1708788638083,-500.62,0.00019168,3]
[315053234,1708788638092,-388.46296932,0.00019176,2]
[315053235,1708788638101,-155.20797869,0.00019176,2]
[315053236,1708788638110,-588.19481873,0.00019176,2]
[315053237,1708788638118,-182.01718802,0.00019176,2]
[315053238,1708788638128,-295.40221259,0.00019176,2]
[315053239,1708788638137,-4697.79543124,0.00019176,2]
[315053240,1708788638146,-197.947123,0.00019177,2]
[315053241,1708788638155,-3475.55659492,0.00019177,2]
[315053242,1708788638166,-503.33303702,0.00019178,2]
[315053243,1708788638175,-646.47874491,0.00019178,2]
[315053244,1708788638185,-580.73195067,0.00019178,2]
[315053245,1708788638194,-500.0,0.00019178,2]
[315053246,1708788638203,-500.0,0.00019178,2]
[315053247,1708788638214,-500.0,0.00019178,2]
[315053248,1708788638224,-500.0,0.00019178,2]
[315053249,1708788638233,-500.0,0.00019178,2]
[315053250,1708788638242,-500.0,0.00019178,2]
[315053251,1708788638252,-500.0,0.00019178,2]
[315053252,1708788638261,-500.0,0.00019178,2]
[315053253,1708788638270,-500.0,0.00019178,2]
[315053254,1708788638280,-500.0,0.00019178,2]
[315053255,1708788638290,-500.0,0.00019178,2]
[315053256,1708788638299,-151.20673677,0.00019178,2]
[315053257,1708788638309,-500.0,0.00019178,2]
[315053258,1708788638318,-500.0,0.00019178,2]
[315053259,1708788638328,-500.0,0.00019178,2]
[315053260,1708788638337,-501.38307201,0.00019178,2]
[315053261,1708788638347,-500.0,0.00019178,2]
[315053262,1708788638356,-500.0,0.00019178,2]
[315053263,1708788638365,-500.0,0.00019178,2]
[315053264,1708788638375,-661.76,0.00019178,2]
[315053265,1708788638385,-500.0,0.00019178,2]
[315053266,1708788638395,-606.38,0.00019178,2]
[315053267,1708788638404,-496.85137534,0.00019178,2]
[315053268,1708788638414,-524.59,0.00019178,2]
[315053269,1708788638423,-500.0,0.00019178,2]
[315053270,1708788638433,-500.94649649,0.00019178,2]
[315053271,1708788638442,-501.13968867,0.00019178,2]
[315053272,1708788638452,-500.0,0.00019178,2]
[315053273,1708788638461,-500.0,0.00019178,2]
[315053274,1708788638471,-500.0,0.00019178,2]
[315053275,1708788638480,-418.83975766,0.00019178,2]
[315053276,1708788638490,-577.02370841,0.00019178,2]
[315053277,1708788638499,-500.0,0.00019178,2]
[315053278,1708788638509,-500.0,0.00019178,2]
[315053279,1708788638518,-500.0,0.00019178,2]
[315053280,1708788638527,-371.3298318,0.00019178,2]
[315053281,1708788638536,-500.0,0.00019178,2]
[315053282,1708788638550,-500.0,0.00019178,2]
[315053283,1708788638559,-500.0,0.00019178,2]
[315053284,1708788638569,-500.0,0.00019178,2]
[315053285,1708788638578,-501.50917574,0.00019178,2]
[315053286,1708788638588,-500.0,0.00019178,2]
[315053287,1708788638597,-1215.31,0.00019178,2]
[315053288,1708788638605,-500.0,0.00019178,2]
[315053289,1708788638614,-500.0,0.00019178,2]
[315053290,1708788638625,-500.0,0.00019178,2]
[315053291,1708788638634,-500.0,0.00019178,2]
[315053292,1708788638643,-500.0,0.00019178,2]
[315053293,1708788638652,-500.0,0.00019178,2]
[315053294,1708788638661,-500.0,0.00019178,2]
[315053295,1708788638670,-612.89728722,0.00019178,2]
[315053296,1708788638679,-500.0,0.00019178,2]
[315053297,1708788638688,-500.0,0.00019178,2]
[315053298,1708788638697,-500.0,0.00019178,2]
[315053299,1708788638706,-500.0,0.00019178,2]
[315053300,1708788638716,-500.0,0.00019178,2]
[315053301,1708788638725,-582.4,0.00019178,2]
[315053302,1708788638734,-500.0,0.00019178,2]
[315053303,1708788638743,-500.0,0.00019178,2]
[315053304,1708788638752,-888.0,0.00019178,2]
[315053305,1708788638761,-888.0,0.00019178,2]
[315053306,1708788638770,-888.0,0.00019178,2]
[315053307,1708788638779,-500.0,0.00019178,2]
[315053308,1708788638788,-500.0,0.00019178,2]
[315053309,1708788638797,-500.0,0.00019178,2]
[315053310,1708788638807,-500.0,0.00019178,2]
[315053311,1708788638816,-1255.45,0.00019178,2]
[315053312,1708788638825,-500.0,0.00019178,2]
[315053313,1708788638834,-500.0,0.00019178,2]
[315053314,1708788638843,-500.0,0.00019178,2]
[315053315,1708788638852,-500.0,0.00019178,2]
[315053316,1708788638861,-1091.33,0.00019178,2]
[315053317,1708788638870,-500.0,0.00019178,2]
[315053318,1708788638879,-1478.34,0.00019178,2]
[315053319,1708788638888,-939.57,0.00019178,2]
[315053320,1708788638897,-715.46,0.00019178,2]
[315053321,1708788638906,-242.17076754,0.00019178,2]
[315053322,1708788638915,-310.0,0.00019178,2]
[315053323,1708788638925,-1344.34,0.00019178,2]
[315053324,1708788638934,-236.07777895,0.00019178,2]
[315053325,1708788638943,-1551.64,0.00019178,2]
[315053326,1708788638951,-722.28,0.00019178,2]
[315053327,1708788638963,-500.0,0.00019178,2]
[315053328,1708788638972,-500.0,0.00019178,2]
[315053329,1708788638982,-504.23606148,0.00019178,2]
[315053330,1708788638991,-500.0,0.00019178,2]
[315053331,1708788639000,-500.0,0.00019178,2]
[315053332,1708788639010,-610.81,0.00019178,2]
[315053333,1708788639019,-500.0,0.00019178,2]
[315053334,1708788639028,-814.05,0.00019178,2]
[315053335,1708788639037,-1614.4,0.00019178,2]
[315053336,1708788639046,-500.0,0.00019178,2]
[315053337,1708788639056,-1031.62,0.00019178,2]
[315053338,1708788639065,-500.0,0.00019178,2]
[315053339,1708788639073,-7525.29,0.00019178,2]
[315053340,1708788639082,-500.0,0.00019178,2]
[315053341,1708788639092,-500.0,0.00019178,2]
[315053342,1708788639101,-500.0,0.00019178,2]
[315053343,1708788639111,-500.0,0.00019178,2]
[315053344,1708788639120,-500.0,0.00019178,2]
[315053345,1708788639129,-500.0,0.00019178,2]
[315053346,1708788639138,-500.0,0.00019178,2]
[315053347,1708788639146,-500.0,0.00019178,2]
[315053348,1708788639156,-502.18556509,0.00019178,2]
[315053349,1708788639165,-567.34,0.00019178,2]
[315053350,1708788639174,-500.0,0.00019178,2]
[315053351,1708788639182,-5018.1,0.00019178,2]
[315053352,1708788639192,-500.0,0.00019178,2]
[315053353,1708788639202,-500.0,0.00019178,2]
[315053354,1708788639211,-500.0,0.00019178,2]
[315053355,1708788639222,-500.0,0.00019178,2]
[315053356,1708788639231,-500.0,0.00019178,2]
[315053357,1708788639240,-500.0,0.00019178,2]
[315053358,1708788639250,-2102.53,0.00019178,2]
[315053359,1708788639259,-500.0,0.00019178,2]
[315053360,1708788639269,-887.17,0.00019178,2]
[315053361,1708788639278,-500.0,0.00019178,2]
[315053362,1708788639288,-500.0,0.00019178,2]
[315053363,1708788639297,-754.84,0.00019178,2]
[315053364,1708788639307,-763.97,0.00019178,2]
[315053365,1708788639317,-501.09651573,0.00019178,2]
[315053366,1708788639326,-3489.89,0.00019178,2]
[315053367,1708788639336,-500.0,0.00019178,2]
[315053368,1708788639345,-500.90707381,0.00019178,2]
[315053369,1708788639355,-311.51301643,0.00019178,2]
[315053370,1708788639364,-5069.74,0.00019178,2]
[315053371,1708788639374,-166.666666,0.00019178,2]
[315053372,1708788639387,-233.419528,0.00019178,2]
[315053373,1708788639401,-200.5294442,0.000192,2]
[315053374,1708788639412,-156.21426297,0.0001922,2]
[315053375,1708788639423,-2774.78266391,0.00019251,2]
[315053376,1708788639432,-156.21426297,0.00019291,2]
[315053377,1708788639442,-500.0,0.0001935,2]
[315053379,1708788639451,-500.0,0.0001935,2]
[315053381,1708788639460,-500.0,0.0001935,2]
[315053382,1708788639471,-528.35773448,0.0001935,2]
[315053383,1708788639480,-500.0,0.0001935,2]
[315053384,1708788639489,-500.0,0.0001935,2]
[315053386,1708788639499,-500.0,0.0001935,2]
[315053387,1708788639508,-500.0,0.0001935,2]
[315053388,1708788639518,-500.0,0.0001935,2]
[315053389,1708788639527,-500.0,0.0001935,2]
[315053390,1708788639536,-528.35773448,0.0001935,2]
[315053391,1708788639548,-500.0,0.0001935,2]
[315053392,1708788639557,-500.0,0.0001935,2]
[315053393,1708788639567,-503.01305684,0.0001935,2]
[315053394,1708788639576,-300.0,0.0001935,2]
[315053395,1708788639585,-500.0,0.0001935,2]
[315053396,1708788639595,-500.0,0.0001935,2]
[315053397,1708788639604,-528.35773448,0.0001935,2]
[315053398,1708788639612,-500.0,0.0001935,2]
[315053399,1708788639622,-500.0,0.0001935,2]
[315053400,1708788639631,-528.35773448,0.0001935,2]
[315053401,1708788639641,-500.0,0.0001935,2]
[315053402,1708788639649,-500.0,0.0001935,2]
[315053403,1708788639658,-500.0,0.0001935,2]
[315053404,1708788639667,-500.0,0.0001935,2]
[315053405,1708788639676,-528.35773448,0.0001935,2]
[315053406,1708788639686,-500.0,0.0001935,2]
[315053407,1708788639695,-500.0,0.0001935,2]
[315053408,1708788639704,-500.0,0.0001935,2]
[315053409,1708788639714,-300.0,0.0001935,2]
[315053410,1708788639724,-500.0,0.0001935,2]
[315053411,1708788639733,-528.35773448,0.0001935,2]
[315053412,1708788639742,-500.0,0.0001935,2]
[315053413,1708788639751,-500.0,0.0001935,2]
[315053414,1708788639760,-528.35773448,0.0001935,2]
[315053415,1708788639769,-500.0,0.0001935,2]
[315053416,1708788639778,-500.0,0.0001935,2]
[315053417,1708788639787,-500.0,0.0001935,2]
[315053418,1708788639797,-500.0,0.0001935,2]
[315053419,1708788639807,-528.35773448,0.0001935,2]
[315053420,1708788639816,-500.0,0.0001935,2]
[315053421,1708788639826,-561.16495253,0.0001935,2]
[315053422,1708788639835,-528.35773448,0.0001935,2]
[315053423,1708788639846,-500.0,0.0001935,2]
[315053424,1708788639855,-250.0,0.0001935,2]
[315053425,1708788639864,-500.0,0.0001935,2]
[315053426,1708788639874,-528.35773448,0.0001935,2]
[315053427,1708788639883,-500.0,0.0001935,2]
[315053428,1708788639892,-500.0,0.0001935,2]
[315053429,1708788639901,-528.35773448,0.0001935,2]
[315053430,1708788639910,-500.0,0.0001935,2]
[315053431,1708788639920,-500.0,0.0001935,2]
[315053432,1708788639929,-528.35773448,0.0001935,2]
[315053433,1708788639938,-640.91955197,0.0001935,2]
[315053434,1708788639947,-528.35773448,0.0001935,2]
[315053435,1708788639956,-500.0,0.0001935,2]
[315053436,1708788639966,-528.35773448,0.0001935,2]
[315053437,1708788639974,-528.35773448,0.0001935,2]
[315053438,1708788639982,-500.0,0.0001935,2]
[315053439,1708788639991,-500.0,0.0001935,2]
[315053440,1708788640000,-528.35773448,0.0001935,2]
[315053441,1708788640010,-500.0,0.0001935,2]
[315053442,1708788640020,-500.0,0.0001935,2]
[315053443,1708788640029,-528.35773448,0.0001935,2]
[315053444,1708788640039,-528.35773448,0.0001935,2]
[315053445,1708788640048,-500.0,0.0001935,2]
[315053446,1708788640058,-500.0,0.0001935,2]
[315053447,1708788640067,-528.35773448,0.0001935,2]
[315053449,1708788640076,-528.35773448,0.0001935,2]
[315053451,1708788640086,-528.35773448,0.0001935,2]
[315053453,1708788640095,-528.35773448,0.0001935,2]
[315053455,1708788640105,-528.35773448,0.0001935,2]
[315053456,1708788640114,-528.35773448,0.0001935,2]
[315053457,1708788640124,-528.35773448,0.0001935,2]
[315053458,1708788640133,-528.35773448,0.0001935,2]
[315053459,1708788640142,-528.35773448,0.0001935,2]
[315053460,1708788640151,-528.35773448,0.0001935,2]
[315053461,1708788640159,-528.35773448,0.0001935,2]
[315053462,1708788640168,-528.35773448,0.0001935,2]
[315053463,1708788640177,-528.35773448,0.0001935,2]
[315053464,1708788640186,-528.35773448,0.0001935,2]
[315053465,1708788640195,-528.35773448,0.0001935,2]
[315053466,1708788640205,-528.35773448,0.0001935,2]
[315053467,1708788640214,-528.35773448,0.0001935,2]
[315053468,1708788640223,-528.35773448,0.0001935,2]
[315053469,1708788640232,-528.35773448,0.0001935,2]
[315053471,1708788640242,-528.35773448,0.0001935,2]
[315053472,1708788640251,-528.35773448,0.0001935,2]
[315053473,1708788640260,-528.35773448,0.0001935,2]
[315053474,1708788640269,-528.35773448,0.0001935,2]
[315053475,1708788640278,-528.35773448,0.0001935,2]
[315053476,1708788640287,-528.35773448,0.0001935,2]
[315053477,1708788640296,-528.35773448,0.0001935,2]
[315053478,1708788640305,-528.35773448,0.0001935,2]
[315053479,1708788640314,-528.35773448,0.0001935,2]
[315053480,1708788640324,-528.35773448,0.0001935,2]
[315053481,1708788640334,-528.35773448,0.0001935,2]
[315053482,1708788640343,-528.35773448,0.0001935,2]
[315053483,1708788640352,-528.35773448,0.0001935,2]
[315053484,1708788640361,-528.35773448,0.0001935,2]
[315053485,1708788640370,-528.35773448,0.0001935,2]
[315053486,1708788640379,-528.35773448,0.0001935,2]
[315053487,1708788640389,-528.35773448,0.0001935,2]
[315053488,1708788640398,-528.35773448,0.0001935,2]
[315053489,1708788640408,-528.35773448,0.0001935,2]
[315053490,1708788640417,-528.35773448,0.0001935,2]
[315053491,1708788640426,-528.35773448,0.0001935,2]
[315053492,1708788640436,-528.35773448,0.0001935,2]
[315053493,1708788640445,-55061.26819589,0.00019352,2]
[315053494,1708788640454,-200.5294442,0.00019425,2]
[315053495,1708788640464,-200.5294442,0.00019425,2]
[315053496,1708788640473,-200.5294442,0.00019425,2]
[315053497,1708788640482,-200.5294442,0.00019425,2]
[315053498,1708788640491,-200.5294442,0.00019425,2]
[315053499,1708788640609,-401.0588884,0.00019425,2]